bitfinex/quotes_ETHUSD_20241207
["timestamp","ask_amount","ask_price","bid_price","bid_amount"]
[1733586713517,0.8148,4007.7,4007.3,1.07734861]
[1733586713665,0.05179664,4007.4,4007.3,1.07734861]
[1733586713867,1.29417519,4007.6,4007.3,1.07734861]
[1733586714079,0.05179664,4007.4,4007.3,1.07734861]
[1733586714616,1.29417519,4007.6,4007.3,1.07734861]
[1733586714765,0.05179664,4007.4,4007.3,1.07734861]
[1733586714967,1.29417519,4007.6,4007.3,1.07734861]
[1733586715265,0.8148,4007.7,4007.3,1.07734861]
[1733586715466,1.29417519,4007.8,4007.6,1.07734861]
[1733586715709,1.29417519,4007.9,4007.6,1.07734861]
[1733586716818,1.29417519,4007.8,4007.6,1.07734861]
[1733586717012,1.29417519,4007.9,4007.6,1.07734861]
[1733586717383,1.29417519,4007.8,4007.0,1.84694]
[1733586717570,1.29417519,4007.8,4007.0,0.1]
[1733586717571,0.8148,4007.8,4007.0,0.1]
[1733586717916,2.3372029,4007.7,4007.2,1.07734861]
[1733586718924,0.05173847,4007.6,4007.2,1.07734861]
[1733586719790,0.8148,4007.5,4007.2,1.07734861]
[1733586720516,0.05173847,4007.4,4007.2,1.07734861]
[1733586721077,0.05173847,4007.4,4007.0,0.1]
[1733586721272,0.52851826,4007.4,4007.0,1.17734861]
[1733586723313,2.86523554,4007.4,4007.0,1.17734861]
[1733586723814,0.86291593,4007.3,4007.0,1.17734861]
[1733586724028,0.86292567,4007.2,4007.0,0.1]
[1733586724240,6.09144907,4007.1,4007.0,0.1]
[1733586724542,7.21470193,4007.1,4007.0,0.1]
[1733586724994,5.65015983,4007.1,4007.0,0.1]
[1733586725087,7.21614143,4007.1,4007.0,0.1]
[1733586725387,5.65015983,4007.1,4007.0,0.1]
[1733586726001,8.25774779,4007.1,4007.0,0.1]
[1733586726246,10.37498699,4007.1,4007.0,0.1]
[1733586726728,13.50409254,4007.1,4007.0,0.1]
[1733586727100,0.8225,4006.4,4005.4,0.8089]
[1733586727306,0.8225,4005.9,4005.2,2.33321246]
[1733586727508,2.15661524,4005.8,4005.2,2.33321246]
[1733586727702,0.91370408,4005.7,4005.2,2.33321246]
[1733586727918,0.05077841,4005.7,4005.2,2.33321246]
[1733586728702,0.05077841,4005.7,4005.2,4.08092246]
[1733586728895,1.2960486,4005.8,4005.2,4.08092246]
[1733586729236,0.91480993,4005.7,4005.2,4.08092246]
[1733586729405,0.05077841,4005.7,4005.2,4.08092246]
[1733586730327,0.05077841,4005.6,4005.2,4.08092246]
[1733586730712,1.86745861,4005.9,4005.2,4.08092246]
[1733586730928,0.8225,4005.7,4004.5,0.7813]
[1733586731119,1.04495861,4005.3,4004.5,0.7813]
[1733586731511,0.8225,4005.1,4004.3,1.74812]
[1733586731631,0.8225,4005.1,4004.2,2.33321246]
[1733586731632,3.20467471,4005.0,4004.2,2.33321246]
[1733586731948,1.04495861,4004.8,4004.2,2.33321246]
[1733586732165,2.1597161,4004.9,4004.2,2.33321246]
[1733586732166,3.20467471,4004.7,4004.2,2.33321246]
[1733586732292,2.1597161,4004.6,4004.2,2.33321246]
[1733586732641,1.04495861,4004.8,4003.9,2.52958]
[1733586732950,0.91345972,4004.7,4003.9,3.19069825]
[1733586733148,0.05029325,4004.7,4003.9,3.19069825]
[1733586733311,0.05029325,4004.7,4003.9,1.44241825]
[1733586733620,0.05029325,4004.7,4004.0,1.74824]
[1733586734000,1.04495861,4004.9,4004.1,1.7482]
[1733586734306,1.04495861,4004.9,4003.9,1.44241825]
[1733586734511,0.04918547,4004.8,4004.2,1.74814]
[1733586734842,0.04918547,4004.8,4004.4,1.74806]
[1733586735007,5.04358547,4004.8,4004.7,0.7813]
[1733586735209,5.04358547,4004.8,4004.7,2.52924]
[1733586735949,4.9944,4004.8,4004.7,2.52924]
[1733586736438,5.04354625,4004.8,4004.7,2.52924]
[1733586736647,5.04354625,4004.8,4004.7,3.01798217]
[1733586737761,6.25e-06,4004.8,4004.7,3.01798217]
[1733586737969,0.04750825,4004.8,4004.7,5.35119463]
[1733586738272,0.8225,4006.5,4004.7,5.35119463]
[1733586738273,0.8225,4006.5,4005.7,1.74747]
[1733586738484,0.86132861,4006.4,4005.7,1.74747]
[1733586738703,0.86138716,4006.3,4005.7,1.74747]
[1733586738849,0.0462387,4006.4,4005.6,1.74754]
[1733586739034,0.8225,4006.5,4005.6,1.74754]
[1733586739240,0.0462387,4006.3,4005.7,1.7475]
[1733586739566,0.0462387,4006.2,4005.7,1.7475]
[1733586740179,0.0462387,4006.1,4005.7,1.7475]
[1733586740482,0.0462387,4006.1,4005.5,4.08079246]
[1733586740643,0.55,4006.4,4005.5,4.08079246]
[1733586740838,0.55,4006.4,4005.5,2.33321246]
[1733586740839,0.0462387,4006.0,4005.5,2.33321246]
[1733586741038,0.8225,4006.5,4006.0,1.74736]
[1733586741552,0.8225,4006.5,4005.9,2.33321246]
[1733586742570,1.82125861,4006.8,4006.1,1.74733]
[1733586742756,0.86122104,4006.7,4005.9,2.33321246]
[1733586742959,1.66464768,4007.1,4006.3,3.15001246]
[1733586742960,1.04495861,4007.1,4006.3,3.15001246]
[1733586743272,0.7763,4007.2,4006.5,1.74715]
[1733586743273,3.11298001,4007.2,4006.5,1.74715]
[1733586743581,2.15270635,4007.1,4006.3,3.15001246]
[1733586743777,0.7763,4007.2,4006.4,1.7472]
[1733586743976,0.7763,4007.2,4006.7,1.74707]
[1733586744795,0.7763,4007.2,4006.5,1.74713]
[1733586745179,0.7763,4007.2,4006.4,1.7472]
[1733586745479,0.04740516,4007.1,4006.5,1.74714]
[1733586745995,0.04740516,4007.1,4006.6,1.74709]
[1733586748186,0.04740516,4007.1,4006.6,1.74707]
[1733586748398,0.04740516,4007.1,4006.7,1.74705]
[1733586748582,0.04740516,4007.1,4006.7,2.33321246]
[1733586748739,0.04740516,4007.1,4006.7,2.50791746]
[1733586749041,0.84579577,4007.3,4006.7,2.50791746]
[1733586749594,0.04739537,4007.2,4006.7,2.50791746]
[1733586750287,0.7563,4007.6,4006.8,1.74701]
[1733586750442,0.04739537,4007.1,4006.7,0.174705]
[1733586750639,0.7563,4007.6,4007.1,2.33321246]
[1733586750942,0.7563,4007.6,4007.0,1.74689]
[1733586751176,0.7563,4007.6,4007.1,1.74689]
[1733586751393,0.7563,4007.6,4007.2,1.74681]
[1733586751945,0.7563,4007.6,4007.1,2.33321246]
[1733586752140,0.7563,4007.6,4006.9,1.74697]
[1733586752361,0.7563,4007.6,4007.0,1.74693]
[1733586753058,0.93642586,4007.6,4006.7,2.33321246]
[1733586753513,0.86103925,4007.5,4006.7,2.33321246]
[1733586753678,0.86103925,4007.5,4006.9,1.74698]
[1733586753875,0.7563,4007.6,4006.9,1.74698]
[1733586755272,0.7563,4007.6,4006.7,2.33321246]
[1733586755273,1.41104197,4007.5,4006.7,2.33321246]
[1733586755507,0.32123006,4007.4,4006.7,2.33321246]
[1733586756091,0.7563,4007.3,4006.3,4.08041246]
[1733586756266,0.7563,4007.2,4006.3,4.08041246]
[1733586756463,2.66247704,4007.2,4006.3,4.08041246]
[1733586756711,0.86121843,4007.1,4006.3,4.08041246]
[1733586756913,0.86121843,4007.1,4006.3,2.33321246]
[1733586757070,1.0225477,4007.0,4006.3,2.33321246]
[1733586758511,0.86136361,4006.9,4006.3,2.33321246]
[1733586758699,1.0225477,4007.0,4006.3,2.33321246]
[1733586758880,0.7563,4007.0,4006.3,2.33321246]
[1733586759213,0.7563,4007.0,4006.6,1.74711]
[1733586760095,0.7563,4007.0,4006.4,1.7472]
[1733586761966,0.5135511,4007.0,4006.4,1.7472]
[1733586763516,0.5135511,4007.0,4006.3,2.33321246]
[1733586763815,0.20378037,4006.9,4005.9,2.33321246]
[1733586764417,0.20378037,4006.9,4006.0,1.74736]
[1733586764710,0.0479294,4006.9,4006.0,1.74736]
[1733586765018,0.8015,4006.7,4006.0,1.74736]
[1733586765511,0.04747868,4006.6,4006.0,1.74736]
[1733586765717,0.04747868,4006.6,4005.9,2.33321246]
[1733586765991,0.04747868,4006.6,4006.3,2.33321246]
[1733586766415,0.04747868,4006.6,4006.4,1.74718]
[1733586766567,0.04747868,4006.6,4006.3,2.82329171]
[1733586766770,1.84645861,4007.0,4006.3,2.82329171]
[1733586766771,0.8015,4007.0,4006.5,1.74716]
[1733586767207,0.8015,4007.0,4006.3,2.33321246]
[1733586767455,0.8015,4007.0,4006.6,1.74711]
[1733586768828,0.8015,4007.0,4006.3,2.33321246]
[1733586769032,0.98614586,4007.0,4006.3,4.08045246]
[1733586769228,0.86205547,4006.9,4006.3,2.33321246]
[1733586769544,0.98614586,4007.0,4006.3,2.33321246]
[1733586769744,0.98614586,4007.0,4006.5,1.74715]
[1733586770512,0.86213986,4006.9,4006.5,1.74715]
[1733586771235,0.98614586,4007.0,4006.5,1.74715]
[1733586771493,0.8015,4007.0,4006.5,1.74715]
[1733586772478,0.98614586,4007.0,4006.4,1.74718]
[1733586772681,0.98614586,4007.0,4006.5,1.74715]
[1733586772983,0.98614586,4007.0,4006.6,1.7471]
[1733586773143,0.8015,4007.0,4006.6,1.7471]
[1733586774567,0.8015,4007.0,4006.3,4.08045246]
[1733586774671,0.8015,4007.0,4006.7,1.74704]
[1733586776239,0.8015,4007.0,4006.8,1.74702]
[1733586776487,0.8015,4007.0,4006.3,4.08043246]
[1733586776488,3.13959003,4007.3,4006.9,1.74698]
[1733586776654,0.8015,4007.3,4006.9,0.40801925]
[1733586776846,0.8015,4007.3,4007.2,1.74685]
[1733586778579,1.66402131,4007.3,4007.2,1.74685]
[1733586778945,1.71001177,4007.3,4007.2,1.74685]
[1733586779670,3.00318853,4007.3,4007.2,1.74685]
[1733586779854,4.04814714,4007.3,4007.2,1.74685]
[1733586780190,2.75497038,4007.3,4007.2,1.74685]
[1733586780390,3.00318853,4007.3,4007.2,1.74685]
[1733586781050,3.00318853,4007.3,4006.7,2.33321246]
[1733586781327,3.20335363,4007.2,4007.1,1.74689]
[1733586781478,3.2038334,4007.2,4007.1,1.74689]
[1733586781849,2.20494963,4007.2,4007.1,1.74689]
[1733586782387,3.77238755,4007.2,4007.1,1.74689]
[1733586783561,3.77332025,4007.2,4007.1,1.74689]
[1733586783729,2.20494963,4007.2,4007.1,1.74689]
[1733586784424,3.92888464,4007.2,4007.1,1.74689]
[1733586786798,6.01880187,4007.2,4007.1,1.74689]
[1733586788503,3.92888464,4007.2,4007.1,4.08010246]
[1733586788851,3.92888464,4007.2,4007.1,4.46451155]
[1733586789200,3.92888464,4007.2,4007.1,4.08010246]
[1733586790558,3.92888464,4007.2,4007.1,2.82286955]
[1733586790850,3.93932153,4007.2,4007.1,2.82286955]
[1733586791909,6.02923876,4007.2,4007.1,2.82286955]
[1733586792144,0.7821,4007.1,4006.9,1.74698]
[1733586792339,3.02828817,4007.0,4006.8,1.07597955]
[1733586792546,3.02829789,4006.9,4006.8,2.82300955]
[1733586792808,2.86741856,4006.9,4006.8,2.82300955]
[1733586793012,3.0746466,4006.9,4006.8,2.82300955]
[1733586793265,2.9137646,4006.9,4006.8,2.82300955]
[1733586793412,0.7821,4006.8,4006.0,1.74735]
[1733586793698,1.82852641,4006.3,4006.1,1.07597955]
[1733586793938,1.29777662,4006.2,4006.1,1.07597955]
[1733586794143,1.34383565,4006.2,4006.1,1.07597955]
[1733586794519,1.34383565,4006.2,4006.1,2.82330955]
[1733586795341,2.39029799,4006.2,4006.1,2.82330955]
[1733586795544,1.34399044,4006.2,4006.1,2.82330955]
[1733586795854,2.39039213,4006.2,4006.1,2.82330955]
[1733586796349,2.39039213,4006.2,4006.1,3.92944051]
[1733586796350,0.04605903,4006.2,4006.1,3.92944051]
[1733586796589,0.04605903,4006.2,4006.1,5.18540284]
[1733586796731,1.04640169,4006.5,4006.4,1.7472]
[1733586796902,2.34413487,4006.5,4006.4,1.7472]
[1733586797917,1.29773318,4006.5,4006.4,1.7472]
[1733586798122,1.04640169,4006.8,4006.4,2.41222719]
[1733586798338,1.29767457,4006.7,4006.5,2.33194188]
[1733586798657,1.04640169,4006.8,4006.7,1.74707]
[1733586798951,2.34409683,4006.8,4006.7,1.74707]
[1733586800470,2.34409529,4006.8,4006.7,1.74707]
[1733586805363,2.34418603,4006.8,4006.7,1.74707]
[1733586808475,2.3442043,4006.8,4006.7,1.74707]
[1733586808660,2.39026335,4006.8,4006.7,1.74707]
[1733586809176,1.34386166,4006.8,4006.7,1.74707]
[1733586809351,2.39026335,4006.8,4006.7,1.74707]
[1733586810298,2.3903076,4006.8,4006.7,1.74707]
[1733586810686,3.2555993,4006.8,4006.7,1.74707]
[1733586811534,2.20919761,4006.8,4006.7,1.74707]
[1733586814270,2.20919761,4006.8,4006.7,3.11759119]
[1733586814592,2.20919761,4006.8,4006.2,0.7879]
[1733586814593,3.25583409,4006.8,4006.2,0.7879]
[1733586814787,3.25583409,4006.8,4006.5,1.74715]
[1733586814788,3.98328457,4006.7,4006.5,1.74715]
[1733586815100,3.25637453,4006.6,4006.5,1.74715]
[1733586816702,3.25637453,4006.6,4006.5,2.82345231]
[1733586818089,2.20972852,4006.6,4006.5,2.82345231]
[1733586818926,2.20972852,4006.6,4006.5,3.97248754]
[1733586819436,0.91160679,4006.6,4006.5,3.97248754]
[1733586819720,0.91162932,4006.6,4006.5,3.97248754]
[1733586820020,2.20995018,4006.6,4006.5,3.97248754]
[1733586820226,2.20996842,4006.6,4006.5,3.97248754]
[1733586820776,0.91162855,4006.6,4006.5,3.97248754]
[1733586821082,2.20998075,4006.6,4006.5,3.97248754]
[1733586821302,2.20998075,4006.6,4006.5,1.74715]
[1733586821513,2.20998075,4006.6,4006.5,2.82345231]
[1733586824940,2.21019125,4006.6,4006.5,2.82345231]
[1733586830738,2.21019125,4006.6,4006.5,1.74715]
[1733586830925,3.25702766,4006.6,4006.5,2.82345231]
[1733586834261,0.772,4006.5,4006.3,1.74724]
[1733586834478,3.21111945,4006.4,4006.3,1.74724]
[1733586834632,1.04701175,4006.4,4005.7,0.7641]
[1733586834830,2.16439283,4006.3,4006.2,1.07630231]
[1733586835161,3.77855157,4006.3,4006.2,1.07630231]
[1733586836168,3.77855157,4006.3,4006.2,2.82359231]
[1733586837464,3.77855157,4006.3,4006.2,1.07630231]
[1733586837680,3.77855157,4006.3,4004.6,4.36162822]
[1733586837681,4.61601111,4006.3,4005.4,2.51172]
[1733586837889,1.04684176,4006.0,4005.8,1.07630231]
[1733586838170,1.04684176,4006.0,4005.1,0.7641]
[1733586838171,2.20834329,4005.9,4005.1,0.7641]
[1733586838480,1.04689355,4005.7,4005.5,1.07630231]
[1733586838628,0.86575713,4005.6,4005.5,1.07630231]
[1733586838832,0.90963408,4005.6,4005.5,1.07630231]
[1733586839221,0.90963408,4005.6,4005.5,2.82386231]
[1733586839668,0.04387695,4005.6,4005.5,2.82386231]
[1733586840033,1.04689355,4005.8,4005.6,1.74752]
[1733586840233,4.01697607,4005.7,4005.3,1.74768]
[1733586840424,2.16298252,4005.6,4005.4,2.82390231]
[1733586840667,1.85399355,4005.7,4005.4,2.82390231]
[1733586840668,0.86519301,4005.5,4005.4,2.82390231]
[1733586841244,0.86519301,4005.5,4005.4,1.7476]
[1733586841554,0.86519301,4005.5,4005.4,2.82390231]
[1733586841555,0.8650401,4005.5,4005.4,2.82390231]
[1733586841761,1.85399355,4005.7,4005.4,2.82390231]
[1733586841966,2.16269457,4005.6,4005.4,2.82390231]
[1733586842376,1.85399355,4005.7,4005.4,2.82390231]
[1733586842581,0.86506934,4005.6,4005.5,1.74759]
[1733586842883,0.8071,4005.7,4005.6,1.74755]
[1733586843189,0.86483946,4005.7,4005.6,1.74755]
[1733586843643,1.85399355,4006.0,4005.6,1.74755]
[1733586843968,2.1615602,4005.9,4005.6,1.74755]
[1733586844193,0.86462408,4005.8,4005.6,1.74755]
[1733586844353,1.04689355,4005.9,4005.6,1.74755]
[1733586844542,0.8645288,4005.8,4005.6,1.74755]
[1733586844747,1.85399355,4006.0,4005.6,1.74755]
[1733586844945,1.85399355,4006.0,4005.4,1.07630231]
[1733586844946,2.16124136,4005.9,4005.7,1.7475]
[1733586845144,0.86449654,4005.8,4005.7,1.7475]
[1733586846430,1.85399355,4006.0,4005.7,1.7475]
[1733586846630,0.86430779,4005.9,4005.7,1.7475]
[1733586846890,2.28016512,4006.0,4005.7,1.7475]
[1733586847096,2.16071752,4005.9,4005.7,1.7475]
[1733586847273,2.28016512,4006.0,4005.7,1.7475]
[1733586847593,0.86428638,4005.9,4005.7,1.7475]
[1733586847751,2.28016512,4006.0,4005.5,1.74759]
[1733586847982,2.54555435,4005.9,4005.5,1.74759]
[1733586848282,0.86420399,4005.8,4005.4,1.07630231]
[1733586848473,1.04689355,4006.2,4005.9,1.74742]
[1733586848802,2.09277554,4006.5,4005.9,1.74742]
[1733586848803,1.04689355,4006.5,4006.4,1.7472]
[1733586848938,2.15991461,4006.5,4006.4,1.7472]
[1733586849138,0.86396584,4006.5,4006.4,1.7472]
[1733586849531,0.86396584,4006.5,4006.2,1.74725]
[1733586849532,2.15993793,4006.5,4006.2,1.74725]
[1733586849727,0.86396584,4006.4,4006.3,1.74723]
[1733586850174,0.86396584,4006.4,4006.3,2.55923]
[1733586850384,2.09277554,4006.9,4006.3,2.55923]
[1733586850385,1.04689355,4007.1,4006.9,1.74698]
[1733586850679,2.15976395,4007.0,4006.9,1.74698]
[1733586850880,2.15976395,4007.0,4006.7,1.74703]
[1733586851083,0.86390558,4006.9,4006.7,1.74703]
[1733586851245,2.09277554,4007.4,4006.9,1.07630231]
[1733586851246,1.04689355,4007.0,4006.9,1.07630231]
[1733586851582,3.46833315,4007.0,4006.9,1.07630231]
[1733586852675,3.46839795,4007.0,4006.9,1.07630231]
[1733586853736,3.51091773,4007.0,4006.9,1.07630231]
[1733586856157,3.24920211,4007.0,4006.9,2.82328231]
[1733586856359,0.90643529,4007.0,4006.9,2.82328231]
[1733586856872,0.04251978,4007.0,4006.9,2.82328231]
[1733586857044,0.90638574,4007.0,4006.9,2.82328231]
[1733586857394,0.90639064,4007.0,4006.9,2.82328231]
[1733586857544,0.90641994,4007.0,4006.9,2.82328231]
[1733586857744,2.20226335,4007.0,4006.9,2.82328231]
[1733586858145,0.90641994,4007.0,4006.9,2.82328231]
[1733586858370,0.04252468,4007.0,4006.9,2.82328231]
[1733586858577,0.90637959,4007.0,4006.9,1.74698]
[1733586858886,0.90637959,4007.0,4006.9,2.82328231]
[1733586859580,0.04252468,4007.0,4006.9,2.82328231]
[1733586859944,1.04689355,4007.2,4007.1,1.74689]
[1733586860181,3.24958448,4007.2,4007.1,1.74689]
[1733586862374,3.24956366,4007.2,4007.1,1.74689]
[1733586865214,2.20267011,4007.2,4007.1,1.74689]
[1733586866017,3.24956366,4007.2,4006.9,1.07630231]
[1733586866193,2.15958148,4007.1,4006.9,1.07630231]
[1733586866388,1.08998218,4007.2,4006.9,1.07630231]
[1733586866583,2.15936262,4007.1,4006.9,1.07630231]
[1733586866775,0.86374547,4007.0,4006.9,1.07630231]
[1733586867488,2.20244997,4007.0,4006.9,1.07630231]
[1733586868500,0.04308863,4007.0,4006.9,1.07630231]
[1733586868804,2.20252866,4007.0,4006.9,1.07630231]
[1733586872320,0.04308863,4007.0,4006.9,1.07630231]
[1733586872626,2.2025477,4007.0,4006.9,1.07630231]
[1733586873489,2.68451809,4007.0,4006.9,1.07630231]
[1733586873695,3.73141164,4007.0,4006.9,1.07630231]
[1733586875188,4.50491164,4007.0,4006.9,1.07630231]
[1733586875934,3.73141164,4007.0,4006.9,1.07630231]
[1733586876104,3.73141164,4007.0,4006.6,1.07630231]
[1733586876435,1.04689355,4006.8,4006.6,1.07630231]
[1733586876635,1.04689355,4006.9,4006.6,1.07630231]
[1733586876936,2.15960064,4006.8,4006.6,1.07630231]
[1733586877097,1.04689355,4006.9,4006.6,1.07630231]
[1733586877098,0.90687938,4006.7,4006.6,1.07630231]
[1733586877293,0.90690644,4006.7,4006.6,1.07630231]
[1733586878395,0.04304943,4006.7,4006.6,1.07630231]
[1733586878898,2.34262546,4006.9,4006.6,1.07630231]
[1733586879098,0.04304943,4006.7,4006.6,1.07630231]
[1733586879338,0.86385985,4006.7,4006.6,1.07630231]
[1733586879523,0.90690928,4006.7,4006.6,1.07630231]
[1733586881660,0.04304943,4006.7,4006.6,1.07630231]
[1733586882026,1.04689355,4007.0,4006.6,1.07630231]
[1733586882219,1.57026264,4007.1,4006.9,1.07630231]
[1733586882464,2.15971093,4007.0,4006.9,1.07630231]
[1733586883963,2.20276036,4007.0,4006.9,1.07630231]
[1733586885026,3.24767742,4007.0,4006.9,1.07630231]
[1733586885420,2.20276036,4007.0,4006.9,1.07630231]
[1733586885667,3.773023,4007.0,4006.9,1.07630231]
[1733586887131,0.04304943,4007.0,4006.9,2.82328231]
[1733586887338,0.04304943,4007.0,4006.9,3.46405177]
[1733586887536,1.04506863,4007.4,4007.3,1.74681]
[1733586887722,3.24840379,4007.4,4007.3,1.74681]
[1733586887925,3.24840379,4007.4,4007.3,2.50781]
[1733586888455,2.20333516,4007.4,4007.3,2.50781]
[1733586890657,3.7735978,4007.4,4007.3,1.74681]
[1733586890969,2.96280685,4007.4,4007.3,1.07630231]
[1733586891134,2.20333516,4007.4,4007.3,3.58411231]
[1733586891467,3.77160941,4007.4,4007.3,3.58411231]
[1733586891763,2.20333516,4007.4,4007.3,3.58411231]
[1733586892268,3.93307208,4007.4,4007.3,3.58411231]
[1733586894567,6.02584762,4007.4,4007.3,3.58411231]
[1733586897166,6.02783567,4007.4,4007.3,3.58411231]
[1733586898841,3.77655493,4007.4,4007.3,4.11721454]
[1733586899041,2.2067166,4007.4,4007.3,4.11721454]
[1733586899276,3.25322481,4007.4,4007.3,4.11721454]
[1733586902284,2.2067166,4007.4,4007.3,4.11721454]
[1733586905144,0.90852806,4007.4,4007.3,4.11721454]
[1733586905462,0.04306903,4007.4,4007.3,4.11721454]
[1733586905571,1.04650821,4007.7,4007.3,4.11721454]
[1733586905749,0.8646458,4007.6,4007.5,1.74672]
[1733586906482,2.1615961,4007.6,4007.5,1.74672]
[1733586907685,2.1615961,4007.6,4007.5,2.82302231]
[1733586909078,0.8646458,4007.6,4007.5,2.82302231]
[1733586909279,0.8646458,4007.6,4007.5,3.45058791]
[1733586910264,1.04650821,4007.7,4007.6,1.74668]
[1733586910504,3.20728789,4007.7,4007.6,1.74668]
[1733586911918,2.16077968,4007.7,4007.6,1.74668]
[1733586912417,3.20728789,4007.7,4007.6,1.74668]
[1733586912574,3.20728789,4007.7,4007.6,2.38368794]
[1733586913103,2.16077968,4007.7,4007.6,2.38368794]
[1733586913295,3.20728789,4007.7,4007.6,2.38368794]
[1733586913618,2.16077968,4007.7,4007.6,2.38368794]
[1733586913785,2.20473103,4007.7,4007.6,2.38368794]
[1733586914505,2.20433726,4007.7,4007.6,2.38368794]
[1733586914673,2.20429522,4007.7,4007.6,2.38368794]
[1733586914872,0.90826322,4007.7,4007.6,2.38368794]
[1733586915297,0.90797776,4007.7,4007.6,2.38368794]
[1733586915300,2.20400876,4007.7,4007.6,2.38368794]
[1733586917488,2.20400876,4007.7,4007.6,1.74668]
[1733586918336,3.25051697,4007.7,4007.6,1.74668]
[1733586919077,2.20400876,4007.7,4007.6,1.74668]
[1733586919487,0.90797776,4007.7,4007.6,2.82298231]
[1733586919631,2.2039508,4007.7,4007.6,3.58448231]
[1733586919976,2.20389311,4007.7,4007.6,4.22524177]
[1733586920176,2.20389311,4007.7,4007.6,2.38743946]
[1733586920324,3.25040132,4007.7,4007.6,3.46374177]
[1733586921235,0.04395135,4007.7,4007.6,3.46374177]
[1733586921632,1.04650821,4008.0,4007.9,1.74655]
[1733586921941,3.20645029,4008.0,4007.9,1.74655]
[1733586922696,2.57339621,4008.4,4008.3,1.74637]
[1733586922894,0.823,4010.4,4007.9,4.73143985]
[1733586922895,2.61217447,4009.6,4008.9,1.7461]
[1733586923084,2.61217447,4009.6,4009.5,1.07630231]
[1733586923289,3.43517447,4009.8,4009.5,1.07630231]
[1733586923493,0.34351745,4009.7,4008.7,1.74619]
[1733586923794,0.34351745,4009.7,4009.6,1.07630231]
[1733586924144,0.823,4009.8,4009.6,1.07630231]
[1733586924341,0.823,4009.8,4008.6,2.50774]
[1733586924581,0.823,4009.8,4009.6,1.07630231]
[1733586925753,2.6101914,4010.4,4009.6,1.85370231]
[1733586925921,0.1670372,4010.5,4009.6,1.85370231]
[1733586925922,0.1670372,4010.5,4010.2,1.07630231]
[1733586927156,0.1670372,4010.5,4010.1,0.7774]
[1733586927356,0.1670372,4010.5,4010.4,1.07630231]
[1733586928809,0.1670372,4010.5,4010.4,2.32709826]
[1733586930611,0.1670372,4010.5,4010.0,2.32709826]
[1733586930918,0.1670372,4010.5,4010.4,4.85075826]
[1733586933204,0.1670372,4010.5,4010.4,3.10529826]
[1733586933790,0.1670372,4010.5,4010.4,4.85075826]
[1733586934039,0.1670372,4010.5,4010.4,3.10529826]
[1733586935544,1.25,4012.0,4010.5,0.7782]
[1733586935742,1.25,4012.0,4011.8,2.32709826]
[1733586935890,0.03931846,4011.9,4011.8,2.32709826]
[1733586936251,0.8112,4011.7,4011.1,2.32709826]
[1733586936894,0.03931846,4011.6,4011.1,2.32709826]
[1733586937317,0.03931846,4011.6,4011.5,2.32709826]
[1733586937828,1.25,4012.0,4011.5,2.32709826]
[1733586938061,0.03931846,4011.6,4011.5,2.32709826]
[1733586938256,0.380592,4011.9,4011.5,2.32709826]
[1733586938414,0.03931846,4011.6,4011.5,2.32709826]
[1733586938852,0.8301,4011.4,4011.1,2.32709826]
[1733586939066,0.8301,4011.4,4010.7,2.32709826]
[1733586939555,1.74516,4011.1,4010.7,2.32709826]
[1733586939964,0.26145785,4011.1,4009.7,2.53426]
[1733586940173,0.8301,4010.9,4010.3,2.32709826]
[1733586940468,1.7453,4010.8,4010.3,2.32709826]
[1733586940666,2.03291763,4010.8,4010.3,2.32709826]
[1733586940955,0.03931846,4010.7,4009.9,2.32709826]
[1733586941150,1.74539,4010.6,4009.9,2.32709826]
[1733586941632,1.74551,4010.3,4009.5,2.32709826]
[1733586941815,1.74559,4010.1,4009.5,2.32709826]
[1733586942014,0.174559,4010.0,4009.5,2.32709826]
[1733586942216,0.21387746,4010.0,4009.5,2.32709826]
[1733586943448,1.95952746,4010.0,4009.5,2.32709826]
[1733586943650,0.8301,4009.9,4009.5,2.32709826]
[1733586944456,0.03931846,4009.8,4009.5,2.32709826]
[1733586944782,0.03931846,4009.8,4008.9,0.7885]
[1733586944783,2.06401121,4009.8,4009.1,2.32709826]
[1733586944921,1.74583,4009.6,4009.1,2.32709826]
[1733586945362,1.74586,4009.5,4009.1,2.32709826]
[1733586945517,1.74589,4009.4,4009.1,2.32709826]
[1733586945718,1.74589,4009.4,4008.1,2.744627]
[1733586945719,2.50364,4009.3,4008.7,2.32709826]
[1733586946025,0.03900963,4009.2,4008.7,2.32709826]
[1733586946385,1.74607,4009.0,4008.7,2.32709826]
[1733586946929,0.03900963,4008.9,4008.7,2.32709826]
[1733586947440,1.74611,4009.0,4008.3,2.32709826]
[1733586947618,0.03900963,4008.8,4008.3,2.32709826]
[1733586947820,1.74611,4008.9,4008.3,2.32709826]
[1733586948071,0.250381,4009.0,4008.3,2.32709826]
[1733586948576,0.03900963,4008.9,4008.3,2.32709826]
[1733586949257,0.55,4009.2,4008.3,2.32709826]
[1733586949433,0.03900963,4008.8,4008.3,2.32709826]
[1733586949643,1.74607,4009.0,4008.3,2.32709826]
[1733586949848,0.03900963,4008.7,4008.3,2.32709826]
[1733586950059,1.74612,4008.9,4008.3,2.32709826]
[1733586950262,0.03900963,4008.6,4007.9,2.32709826]
[1733586950460,1.74612,4008.9,4007.9,2.81632309]
[1733586950658,0.03900963,4008.5,4007.9,2.81632309]
[1733586950832,1.74612,4008.9,4007.9,2.81632309]
[1733586951178,0.03900963,4008.4,4007.9,2.81632309]
[1733586951491,1.78434091,4008.8,4007.9,2.32709826]
[1733586951666,1.7462,4008.7,4007.9,2.32709826]
[1733586951967,2.55118091,4008.7,4007.9,2.32709826]
[1733586952135,0.80498091,4008.7,4007.9,2.32709826]
[1733586954987,1.74625,4008.6,4007.9,2.32709826]
[1733586955758,0.03818091,4008.5,4007.9,2.32709826]
[1733586956347,0.25512309,4008.4,4007.2,0.8185]
[1733586956751,1.74634,4008.4,4007.2,0.8185]
[1733586956982,3.55,4008.6,4007.5,2.32709826]
[1733586957290,0.038019,4008.3,4007.5,2.32709826]
[1733586957510,0.03726852,4008.5,4007.5,2.32709826]
[1733586957638,5.29625,4008.6,4007.5,2.32709826]
[1733586957959,0.03726852,4008.4,4007.5,2.32709826]
[1733586958176,5.902555,4008.6,4007.5,2.32709826]
[1733586958848,0.03721455,4008.5,4007.6,1.74666]
[1733586959033,0.03721455,4008.5,4007.9,2.32709826]
[1733586959235,0.8326,4009.1,4008.3,2.32709826]
[1733586959481,0.8326,4009.1,4008.3,4.07343826]
[1733586959721,0.03721455,4008.4,4008.3,4.07343826]
[1733586959878,1.74585,4009.5,4008.3,4.56407209]
[1733586960219,0.8326,4009.6,4008.5,1.74628]
[1733586960361,0.03722436,4009.4,4008.6,1.74623]